[Event "RUS-chT Men Rapid 2019"]
[Site "Sochi"]
[Date "2019.10.18"]
[Round "5.19"]
[White "Moiseenko, Vadim"]
[Black "Dudin, Gleb"]
[Result "1-0"]
[ECO "C00"]
[WhiteElo "2532"]
[BlackElo "2314"]
[Annotator "ChessBase"]
[PlyCount "69"]
[EventDate "2019.10.18"]
[EventType "swiss"]
[EventCountry "RUS"]
[SourceTitle "playchess.com"]
[Source "ChessBase"]
[SourceQuality "1"]
[TimeControl "900+10"]

1. e4 {[%emt 0:00:00]} e6 {[%emt 0:00:05]} 2. d4 {[%emt 0:00:05]} d5 {[%emt 0:00:02]} 3. Bd3 {[%emt 0:00:08]} dxe4 {[%emt 0:00:04]} 4. Bxe4 {[%emt 0:00:01]} Nf6 {[%emt 0:00:02]} 5. Bf3 {[%emt 0:00:01]} c5 {[%emt 0:00:01]} 6. Ne2 {[%emt 0:00:02]} Nc6 {[%emt 0:00:01]} 7. Be3 {[%emt 0:00:05]} cxd4 {[%emt 0:00:08]} 8. Nxd4 {[%emt 0:00:02]} Ne5 {[%emt 0:00:01]} 9. Nc3 {[%emt 0:00:01]} Bb4 {[%emt 0:01:58]} 10. Ndb5 {[%emt 0:00:01]} Nxf3+ {[%emt 0:00:13]} 11. Qxf3 {[%emt 0:00:34]} a6 {[%emt 0:02:54]} 12. Rd1 {[%emt 0:00:23]} Qe7 {[%emt 0:00:24]} 13. a3 {[%emt 0:00:05]} axb5 {[%emt 0:01:57]} 14. axb4 {[%emt 0:00:02]} Qxb4 {[%emt 0:00:02]} 15. Bd4 {[%emt 0:01:17]} Qe7 {[%emt 0:04:25]} 16. Be5 {[%emt 0:01:19]} Nd5 {[%emt 0:02:52]} 17. Bxg7 {[%emt 0:00:16]} Rg8 {[%emt 0:00:01]} 18. Bd4 {[%emt 0:00:17]} Bd7 {[%emt 0:00:19]} 19. Nxd5 {[%emt 0:00:33]} exd5+ {[%emt 0:00:01]} 20. Kd2 {[%emt 0:01:05]} Qg5+ {[%emt 0:00:19]} 21. Kc3 {[%emt 0:01:37]} b4+ {[%emt 0:01:54]} 22. Kb3 {[%emt 0:00:27]} Ba4+ {[%emt 0:00:18]} 23. Kxb4 {[%emt 0:00:02]} Bxc2 {[%emt 0:00:30]} 24. Rhe1+ {[%emt 0:00:48]} Be4 {[%emt 0:00:02]} 25. Bf6 {[%emt 0:00:26]} Qxg2 {[%emt 0:00:21]} 26. Qxg2 {[%emt 0:00:15]} Rxg2 {[%emt 0:00:01]} 27. Rxd5 {[%emt 0:00:08]} Rxf2 {[%emt 0:00:10]} 28. Rxe4+ {[%emt 0:00:03]} Kf8 {[%emt 0:00:00]} 29. Rd6 {[%emt 0:00:09]} Rxh2 {[%emt 0:00:15]} 30. Be7+ {[%emt 0:00:06]} Ke8 {[%emt 0:00:10]} 31. Bg5+ {[%emt 0:00:25]} Kf8 {[%emt 0:00:03]} 32. Bh6+ {[%emt 0:00:01]} Kg8 {[%emt 0:00:07]} 33. Rg4+ {[%emt 0:00:01]} Kh8 {[%emt 0:00:01]} 34. Bg7+ {[%emt 0:00:01]} Kg8 {[%emt 0:00:01]} 35. Be5+ {[%emt 0:00:01]} 1-0

[Event "RUS-chT Men Rapid 2019"]
[Site "Sochi"]
[Date "2019.10.18"]
[Round "5.20"]
[White "Yeritsyan, Aram"]
[Black "Rozum, Ivan"]
[Result "0-1"]
[ECO "B12"]
[WhiteElo "2271"]
[BlackElo "2599"]
[Annotator "ChessBase"]
[PlyCount "62"]
[EventDate "2019.10.18"]
[EventType "swiss"]
[EventCountry "RUS"]
[SourceTitle "playchess.com"]
[Source "ChessBase"]
[SourceQuality "1"]
[TimeControl "900+10"]

1. e4 {[%emt 0:00:00]} c6 {[%emt 0:00:00]} 2. d4 {[%emt 0:00:00]} d5 {[%emt 0:00:00]} 3. e5 {[%emt 0:00:00]} Bf5 {[%emt 0:00:00]} 4. h4 {[%emt 0:00:00]} h5 {[%emt 0:00:03]} 5. Bd3 {[%emt 0:00:00]} Bxd3 {[%emt 0:00:02]} 6. Qxd3 {[%emt 0:00:00]} Qa5+ {[%emt 0:00:04]} 7. Nd2 {[%emt 0:00:02]} e6 {[%emt 0:00:04]} 8. Ngf3 {[%emt 0:00:09]} Nh6 {[%emt 0:00:03]} 9. O-O {[%emt 0:00:08]} Nf5 {[%emt 0:00:01]} 10. c4 {[%emt 0:00:09]} Be7 {[%emt 0:00:11]} 11. g3 {[%emt 0:00:56]} Qa6 {[%emt 0:00:02]} 12. b3 {[%emt 0:00:34]} c5 {[%emt 0:00:02]} 13. dxc5 {[%emt 0:00:53]} Bxc5 {[%emt 0:00:04]} 14. Kg2 {[%emt 0:00:13]} Nc6 {[%emt 0:00:03]} 15. Bb2 {[%emt 0:00:04]} Rd8 {[%emt 0:01:02]} 16. Qe2 {[%emt 0:01:18]} O-O {[%emt 0:00:12]} 17. Rfe1 {[%emt 0:00:09]} Nb4 {[%emt 0:01:34]} 18. Ng5 {[%emt 0:01:49]} g6 {[%emt 0:00:16]} 19. cxd5 {[%emt 0:00:51]} Nd3 {[%emt 0:02:30]} 20. Nde4 {[%emt 0:01:02]} Bb4 {[%emt 0:00:01]} 21. Nf6+ {[%emt 0:03:41]} Kh8 {[%emt 0:01:17]} 22. d6 {[%emt 0:01:37]} Bxe1 {[%emt 0:01:02]} 23. Rxe1 {[%emt 0:00:03]} Rc8 {[%emt 0:01:21]} 24. d7 {[%emt 0:01:41]} Rc2 {[%emt 0:00:19]} 25. d8=Q {[%emt 0:01:12]} Rxd8 {[%emt 0:00:09]} 26. Nxf7+ {[%emt 0:00:02]} Kg7 {[%emt 0:00:05]} 27. Nxd8 {[%emt 0:00:07]} Rxe2 {[%emt 0:00:30]} 28. Rxe2 {[%emt 0:00:32]} Nf4+ {[%emt 0:00:39]} 29. gxf4 {[%emt 0:00:02]} Qxe2 {[%emt 0:00:01]} 30. Nxe6+ {[%emt 0:00:01]} Kh8 {[%emt 0:00:34]} 31. Bd4 {[%emt 0:01:35]} Qa6 {[%emt 0:01:12]} 0-1

[Event "RUS-chT Men Rapid 2019"]
[Site "Sochi"]
[Date "2019.10.18"]
[Round "5.21"]
[White "Kardashevskiy, Evgeny"]
[Black "Tekeyev, Zaur"]
[Result "1-0"]
[ECO "E67"]
[WhiteElo "2428"]
[BlackElo "2384"]
[Annotator "NA"]
[PlyCount "81"]
[EventDate "2019.10.18"]
[EventType "swiss"]
[EventCountry "RUS"]
[SourceTitle "playchess.com"]
[Source "ChessBase"]
[SourceQuality "1"]
[TimeControl "900+10"]

1. d4 {[%emt 0:00:00]} Nf6 {[%emt 0:00:00]} 2. Nf3 {[%emt 0:00:00]} g6 {[%emt 0:00:00]} 3. c4 {[%emt 0:00:00]} Bg7 {[%emt 0:00:00]} 4. g3 {[%emt 0:00:02]} O-O {[%emt 0:00:07]} 5. Bg2 {[%emt 0:00:03]} d6 {[%emt 0:00:04]} 6. O-O {[%emt 0:00:05]} Nbd7 {[%emt 0:00:09]} 7. Nc3 {[%emt 0:00:06]} e5 {[%emt 0:00:03]} 8. b3 {[%emt 0:00:10]} Re8 {[%emt 0:00:44]} 9. e4 {[%emt 0:00:08]} a6 {[%emt 0:02:28]} 10. Be3 {[%emt 0:00:41]} Rb8 {[%emt 0:01:26]} 11. a4 {[%emt 0:01:34]} exd4 {[%emt 0:02:34]} 12. Nxd4 {[%emt 0:00:08]} Ne5 {[%emt 0:01:30]} 13. h3 {[%emt 0:00:43]} c5 {[%emt 0:00:17]} 14. Nde2 {[%emt 0:00:35]} Be6 {[%emt 0:00:45]} 15. f4 {[%emt 0:00:58]} Nc6 {[%emt 0:00:07]} 16. Qd2 {[%emt 0:00:33]} Na5 {[%emt 0:00:25]} 17. Rab1 {[%emt 0:00:59]} Qd7 {[%emt 0:04:34]} 18. g4 {[%emt 0:00:48]} Bxg4 {[%emt 0:02:24]} 19. hxg4 {[%emt 0:00:11]} Nxg4 {[%emt 0:00:01]} 20. Bxc5 {[%emt 0:00:59]} Qe7 {[%emt 0:00:25]} 21. Bf2 {[%emt 0:00:20]} Nxf2 {[%emt 0:00:02]} 22. Rxf2 {[%emt 0:00:08]} Nc6 {[%emt 0:00:02]} 23. Rd1 {[%emt 0:00:28]} Rbd8 {[%emt 0:00:09]} 24. Nd5 {[%emt 0:00:06]} Qh4 {[%emt 0:00:02]} 25. Qd3 {[%emt 0:00:21]} Rb8 {[%emt 0:00:27]} 26. Qg3 {[%emt 0:01:16]} Qxg3 {[%emt 0:00:03]} 27. Nxg3 {[%emt 0:00:02]} Bd4 {[%emt 0:00:06]} 28. Rxd4 {[%emt 0:00:07]} Nxd4 {[%emt 0:00:01]} 29. Nf6+ {[%emt 0:00:02]} Kf8 {[%emt 0:00:23]} 30. Nxe8 {[%emt 0:00:41]} Kxe8 {[%emt 0:00:01]} 31. Rd2 {[%emt 0:00:25]} Nxb3 {[%emt 0:00:10]} 32. Rxd6 {[%emt 0:00:03]} b5 {[%emt 0:00:10]} 33. Rxa6 {[%emt 0:03:03]} b4 {[%emt 0:00:37]} 34. e5 {[%emt 0:01:32]} Nc5 {[%emt 0:00:12]} 35. Ra5 {[%emt 0:00:41]} Nd3 {[%emt 0:00:05]} 36. Rb5 {[%emt 0:00:11]} Rc8 {[%emt 0:00:04]} 37. Ne4 {[%emt 0:00:13]} Kf8 {[%emt 0:00:13]} 38. Nd6 {[%emt 0:00:13]} Rc7 {[%emt 0:00:11]} 39. a5 {[%emt 0:01:02]} Ra7 {[%emt 0:00:17]} 40. Bb7 {[%emt 0:00:38]} b3 {[%emt 0:00:11]} 41. Nc8 {[%emt 0:00:23]} 1-0

[Event "RUS-chT Men Rapid 2019"]
[Site "Sochi"]
[Date "2019.10.18"]
[Round "5.22"]
[White "Kozak, Alexander"]
[Black "Suleymenov, Alisher"]
[Result "1-0"]
[ECO "B22"]
[WhiteElo "2230"]
[BlackElo "2370"]
[Annotator "NA"]
[PlyCount "201"]
[EventDate "2019.10.18"]
[EventType "swiss"]
[EventCountry "RUS"]
[SourceTitle "playchess.com"]
[Source "ChessBase"]
[SourceQuality "1"]
[TimeControl "900+10"]

1. e4 {[%emt 0:00:00]} c5 {[%emt 0:00:00]} 2. c3 {[%emt 0:00:00]} d5 {[%emt 0:00:00]} 3. exd5 {[%emt 0:00:00]} Qxd5 {[%emt 0:00:00]} 4. d4 {[%emt 0:00:00]} Nc6 {[%emt 0:00:00]} 5. Nf3 {[%emt 0:00:00]} Bf5 {[%emt 0:00:00]} 6. Na3 {[%emt 0:00:41]} cxd4 {[%emt 0:02:30]} 7. Bc4 {[%emt 0:00:23]} Qe4+ {[%emt 0:07:53]} 8. Be3 {[%emt 0:00:06]} O-O-O {[%emt 0:02:27]} 9. cxd4 {[%emt 0:00:42]} e6 {[%emt 0:01:07]} 10. Qa4 {[%emt 0:02:09]} Bb4+ {[%emt 0:01:09]} 11. Kf1 {[%emt 0:00:01]} Bxa3 {[%emt 0:00:06]} 12. Qxa3 {[%emt 0:00:05]} Nh6 {[%emt 0:00:11]} 13. h3 {[%emt 0:00:21]} Bg6 {[%emt 0:00:18]} 14. b4 {[%emt 0:06:50]} Kb8 {[%emt 0:00:58]} 15. b5 {[%emt 0:02:02]} Nxd4 {[%emt 0:00:03]} 16. Re1 Qc2 {[%emt 0:00:15]} 17. Rc1 {[%emt 0:01:48]} Qe4 {[%emt 0:00:30]} 18. Nxd4 {[%emt 0:01:19]} Rxd4 {[%emt 0:00:01]} 19. Qc5 {[%emt 0:01:16]} Nf5 {[%emt 0:00:20]} 20. Be2 {[%emt 0:00:24]} Nxe3+ {[%emt 0:00:11]} 21. fxe3 {[%emt 0:00:01]} Rdd8 {[%emt 0:00:04]} 22. Qc7+ {[%emt 0:00:08]} Ka8 {[%emt 0:00:01]} 23. Bf3 {[%emt 0:00:00]} Qd3+ {[%emt 0:00:10]} 24. Kg1 {[%emt 0:00:03]} Be4 {[%emt 0:00:23]} 25. Qf4 {[%emt 0:00:28]} Bxf3 {[%emt 0:00:06]} 26. Qxf3 {[%emt 0:00:00]} Qxb5 {[%emt 0:00:09]} 27. h4 {[%emt 0:00:17]} Qd7 {[%emt 0:00:12]} 28. Kh2 {[%emt 0:00:08]} Rc8 {[%emt 0:00:07]} 29. Rcd1 {[%emt 0:00:07]} Qe7 {[%emt 0:00:03]} 30. Kh3 {[%emt 0:00:07]} Rhd8 {[%emt 0:00:10]} 31. Qe4 {[%emt 0:00:23]} g6 {[%emt 0:00:08]} 32. a4 {[%emt 0:00:07]} a6 {[%emt 0:00:04]} 33. Rb1 {[%emt 0:00:06]} Rd5 {[%emt 0:00:12]} 34. Rb6 {[%emt 0:00:07]} Qc5 {[%emt 0:00:14]} 35. Rhb1 {[%emt 0:00:05]} Rc7 {[%emt 0:00:01]} 36. R6b3 {[%emt 0:00:13]} Ka7 {[%emt 0:00:11]} 37. Qf4 {[%emt 0:00:15]} Rdd7 {[%emt 0:00:10]} 38. e4 {[%emt 0:00:10]} Qd4 {[%emt 0:00:21]} 39. Rb4 {[%emt 0:00:06]} Qd3+ {[%emt 0:00:14]} 40. Kh2 {[%emt 0:00:06]} Qd6 {[%emt 0:00:03]} 41. e5 {[%emt 0:00:02]} Qc5 {[%emt 0:00:01]} 42. Re1 {[%emt 0:00:09]} Rd5 {[%emt 0:00:11]} 43. Ree4 {[%emt 0:00:05]} Qc1 {[%emt 0:00:10]} 44. Qf2+ {[%emt 0:00:06]} Qc5 {[%emt 0:00:09]} 45. Qf4 {[%emt 0:00:07]} Ka8 {[%emt 0:00:15]} 46. Qf6 {[%emt 0:00:15]} h5 {[%emt 0:00:27]} 47. Qf4 {[%emt 0:00:17]} Qe7 {[%emt 0:00:05]} 48. Rb6 {[%emt 0:00:08]} Rdc5 {[%emt 0:00:15]} 49. Rbb4 {[%emt 0:00:18]} Qd7 {[%emt 0:00:06]} 50. Red4 {[%emt 0:00:05]} Rd5 {[%emt 0:00:01]} 51. Re4 {[%emt 0:00:01]} Rd1 {[%emt 0:00:15]} 52. Qf3 {[%emt 0:00:16]} Rd3 {[%emt 0:00:17]} 53. Qf4 {[%emt 0:00:05]} Qd8 {[%emt 0:00:06]} 54. a5 {[%emt 0:00:12]} Rd5 {[%emt 0:00:05]} 55. Qf3 {[%emt 0:00:14]} Rxa5 {[%emt 0:00:14]} 56. Rb6 {[%emt 0:00:19]} Qd5 {[%emt 0:00:22]} 57. Qf4 {[%emt 0:00:17]} Qc5 {[%emt 0:00:08]} 58. Rb1 {[%emt 0:00:13]} Rb5 {[%emt 0:00:08]} 59. Rd1 {[%emt 0:00:04]} Ka7 {[%emt 0:00:06]} 60. Rdd4 {[%emt 0:00:17]} Rb2 {[%emt 0:00:19]} 61. Rc4 {[%emt 0:00:11]} Qb6 {[%emt 0:00:01]} 62. Rxc7 {[%emt 0:00:08]} Qxc7 {[%emt 0:00:01]} 63. Rc4 {[%emt 0:00:00]} Qd7 {[%emt 0:00:29]} 64. Qe3+ {[%emt 0:00:05]} Ka8 {[%emt 0:00:06]} 65. Qc5 {[%emt 0:00:04]} Rb5 {[%emt 0:00:06]} 66. Qf8+ Ka7 67. Rc8 {[%emt 0:00:02]} Rxe5 {[%emt 0:00:13]} 68. Ra8+ Kb6 69. Rd8 {[%emt 0:00:15]} Qc7 {[%emt 0:00:07]} 70. Rc8 {[%emt 0:00:34]} Qd7 {[%emt 0:00:21]} 71. Rd8 {[%emt 0:00:07]} Qc7 {[%emt 0:00:19]} 72. Rc8 {[%emt 0:00:01]} Qd7 {[%emt 0:00:00]} 73. Rd8 {[%emt 0:00:01]} Qb5 {[%emt 0:00:29]} 74. Qd6+ {[%emt 0:00:16]} Ka7 {[%emt 0:00:02]} 75. Qb8+ {[%emt 0:00:06]} Kb6 {[%emt 0:00:00]} 76. Qd6+ {[%emt 0:00:01]} Ka5 {[%emt 0:00:01]} 77. Qa3+ {[%emt 0:00:15]} Kb6 {[%emt 0:00:22]} 78. Qd6+ {[%emt 0:00:05]} Ka7 {[%emt 0:00:00]} 79. Qb8+ {[%emt 0:00:07]} Kb6 {[%emt 0:00:01]} 80. Qd6+ {[%emt 0:00:01]} Ka5 {[%emt 0:00:00]} 81. Qa3+ {[%emt 0:00:01]} Qa4 {[%emt 0:00:53]} 82. Qc3+ Kb6 83. Rd6+ {[%emt 0:00:06]} Ka7 {[%emt 0:00:01]} 84. Qxe5 {[%emt 0:00:00]} Qxh4+ 85. Kg1 Qe7 {[%emt 0:00:16]} 86. Qd4+ {[%emt 0:00:21]} Kb8 {[%emt 0:00:01]} 87. Rd7 {[%emt 0:00:03]} Qa3 {[%emt 0:00:32]} 88. Qf4+ {[%emt 0:00:33]} Ka7 {[%emt 0:00:11]} 89. Qf2+ {[%emt 0:00:54]} Kb8 {[%emt 0:00:04]} 90. Qxf7 {[%emt 0:00:07]} Qa1+ {[%emt 0:00:15]} 91. Kh2 {[%emt 0:00:03]} Qe5+ {[%emt 0:00:01]} 92. Kh3 {[%emt 0:00:12]} Qf5+ {[%emt 0:00:34]} 93. Qxf5 {[%emt 0:00:01]} gxf5 {[%emt 0:00:10]} 94. Kg3 {[%emt 0:00:12]} a5 {[%emt 0:00:06]} 95. Kf4 {[%emt 0:00:02]} Ka7 {[%emt 0:00:08]} 96. Rd6 {[%emt 0:00:11]} a4 {[%emt 0:00:06]} 97. Rxe6 {[%emt 0:00:07]} b5 {[%emt 0:00:00]} 98. Ke3 {[%emt 0:00:09]} a3 {[%emt 0:00:07]} 99. Kd4 {[%emt 0:00:06]} b4 {[%emt 0:00:31]} 100. Kc4 {[%emt 0:00:03]} a2 {[%emt 0:00:02]} 101. Re1 {[%emt 0:00:01]} 1-0

[Event "RUS-chT Men Rapid 2019"]
[Site "Sochi"]
[Date "2019.10.18"]
[Round "5.23"]
[White "Cherednichenko, Dmitrij"]
[Black "Nechaev, Oleg"]
[Result "0-1"]
[ECO "B31"]
[WhiteElo "2275"]
[BlackElo "2371"]
[Annotator "NA"]
[PlyCount "59"]
[EventDate "2019.10.18"]
[EventType "swiss"]
[EventCountry "RUS"]
[SourceTitle "playchess.com"]
[Source "ChessBase"]
[SourceQuality "1"]
[TimeControl "900+10"]

1. e4 {[%emt 0:00:00]} c5 {[%emt 0:00:00]} 2. Nf3 {[%emt 0:00:00]} Nc6 {[%emt 0:00:00]} 3. Bb5 {[%emt 0:00:00]} g6 {[%emt 0:00:00]} 4. Bxc6 {[%emt 0:00:01]} dxc6 {[%emt 0:00:00]} 5. Nc3 {[%emt 0:00:06]} Bg7 {[%emt 0:00:00]} 6. d3 {[%emt 0:00:02]} Nf6 {[%emt 0:00:00]} 7. Be3 {[%emt 0:00:15]} b6 {[%emt 0:00:02]} 8. h3 {[%emt 0:00:02]} O-O {[%emt 0:00:03]} 9. Qd2 {[%emt 0:00:03]} Ne8 {[%emt 0:00:10]} 10. O-O-O {[%emt 0:00:11]} e5 {[%emt 0:00:08]} 11. Bh6 {[%emt 0:00:04]} f6 {[%emt 0:00:03]} 12. Nh2 {[%emt 0:01:02]} a5 {[%emt 0:00:09]} 13. Bxg7 {[%emt 0:00:40]} Nxg7 {[%emt 0:00:04]} 14. f4 {[%emt 0:00:02]} exf4 {[%emt 0:00:05]} 15. Qxf4 {[%emt 0:00:02]} Ne6 {[%emt 0:00:10]} 16. Qh6 {[%emt 0:00:24]} a4 {[%emt 0:00:09]} 17. a3 {[%emt 0:00:22]} b5 {[%emt 0:00:09]} 18. Ng4 {[%emt 0:00:27]} b4 {[%emt 0:00:37]} 19. Nb1 {[%emt 0:00:56]} Nd4 {[%emt 0:00:03]} 20. Rdf1 {[%emt 0:00:36]} Ne2+ {[%emt 0:00:17]} 21. Kd1 {[%emt 0:01:11]} Ng3 {[%emt 0:00:03]} 22. Ne3 {[%emt 0:03:53]} Be6 {[%emt 0:00:45]} 23. Nd2 {[%emt 0:00:18]} Qd4 {[%emt 0:00:53]} 24. Nec4 {[%emt 0:00:48]} bxa3 {[%emt 0:00:54]} 25. Qf4 {[%emt 0:02:06]} Nxh1 {[%emt 0:01:02]} 26. Rxh1 {[%emt 0:00:09]} axb2 {[%emt 0:00:13]} 27. Ke2 {[%emt 0:00:03]} a3 {[%emt 0:00:08]} 28. Nb6 {[%emt 0:02:19]} a2 {[%emt 0:00:20]} 29. Nxa8 {[%emt 0:01:23]} a1=Q {[%emt 0:00:08]} 30. Nb1 0-1

[Event "RUS-chT Men Rapid 2019"]
[Site "Sochi"]
[Date "2019.10.18"]
[Round "5.24"]
[White "Nuristani, Iman"]
[Black "Navrodskiy, Boris"]
[Result "1-0"]
[ECO "D00"]
[WhiteElo "2171"]
[BlackElo "2197"]
[Annotator "NA"]
[PlyCount "91"]
[EventDate "2019.10.18"]
[EventType "swiss"]
[EventCountry "RUS"]
[SourceTitle "playchess.com"]
[Source "ChessBase"]
[SourceQuality "1"]
[TimeControl "900+10"]

1. d4 {[%emt 0:00:00]} d5 {[%emt 0:00:00]} 2. Bf4 {[%emt 0:00:00]} Nf6 {[%emt 0:00:00]} 3. e3 {[%emt 0:00:00]} c5 {[%emt 0:00:00]} 4. c3 {[%emt 0:00:00]} Nc6 {[%emt 0:00:02]} 5. Nf3 {[%emt 0:00:30]} Qb6 {[%emt 0:00:04]} 6. Qb3 {[%emt 0:00:03]} c4 {[%emt 0:00:03]} 7. Qc2 {[%emt 0:00:02]} Bf5 {[%emt 0:00:02]} 8. Qc1 {[%emt 0:00:02]} g6 {[%emt 0:00:41]} 9. Nbd2 {[%emt 0:00:15]} Bg7 {[%emt 0:00:02]} 10. b3 {[%emt 0:00:33]} cxb3 {[%emt 0:00:13]} 11. axb3 {[%emt 0:00:03]} O-O {[%emt 0:00:09]} 12. Be2 {[%emt 0:02:35]} Nh5 {[%emt 0:01:37]} 13. O-O {[%emt 0:02:40]} f6 {[%emt 0:02:43]} 14. Nh4 {[%emt 0:00:39]} Nxf4 {[%emt 0:00:01]} 15. exf4 {[%emt 0:00:08]} Bd7 {[%emt 0:00:13]} 16. Bf3 {[%emt 0:02:34]} Be6 {[%emt 0:01:13]} 17. Re1 {[%emt 0:00:24]} Bf7 {[%emt 0:00:01]} 18. g3 {[%emt 0:04:05]} e5 {[%emt 0:00:12]} 19. dxe5 {[%emt 0:00:13]} fxe5 {[%emt 0:00:05]} 20. Ng2 {[%emt 0:00:01]} e4 {[%emt 0:00:20]} 21. Bg4 {[%emt 0:00:18]} h5 {[%emt 0:01:00]} 22. Bh3 {[%emt 0:00:18]} Qc5 {[%emt 0:00:15]} 23. Re3 {[%emt 0:00:42]} Rad8 {[%emt 0:01:19]} 24. b4 {[%emt 0:00:26]} Qb6 {[%emt 0:00:29]} 25. Rb1 {[%emt 0:00:29]} d4 {[%emt 0:00:25]} 26. cxd4 {[%emt 0:00:36]} Qxd4 {[%emt 0:02:14]} 27. Nxe4 {[%emt 0:01:12]} Ba2 {[%emt 0:00:10]} 28. Re1 {[%emt 0:00:33]} Bxb1 {[%emt 0:00:18]} 29. Qxb1 {[%emt 0:00:01]} Qxb4 {[%emt 0:00:47]} 30. Qa2+ {[%emt 0:00:01]} Kh8 {[%emt 0:00:14]} 31. Ng5 {[%emt 0:00:00]} Nd4 {[%emt 0:00:18]} 32. Rb1 {[%emt 0:00:12]} Qe7 {[%emt 0:01:13]} 33. Nh4 {[%emt 0:00:04]} Rd6 {[%emt 0:00:56]} 34. Qa3 {[%emt 0:00:21]} Nc6 {[%emt 0:01:30]} 35. Bf1 {[%emt 0:00:20]} b6 {[%emt 0:00:45]} 36. Rc1 {[%emt 0:00:05]} Qd7 {[%emt 0:00:33]} 37. Qa2 {[%emt 0:00:29]} Nd4 {[%emt 0:00:22]} 38. Rd1 {[%emt 0:00:08]} Bh6 {[%emt 0:00:27]} 39. Rxd4 {[%emt 0:00:04]} Rxd4 {[%emt 0:00:07]} 40. Nxg6+ {[%emt 0:00:02]} Kg7 {[%emt 0:00:04]} 41. Nxf8 {[%emt 0:00:02]} Qd5 {[%emt 0:00:32]} 42. Qxa7+ {[%emt 0:00:01]} Kxf8 {[%emt 0:00:01]} 43. Nh7+ {[%emt 0:00:01]} Ke8 {[%emt 0:00:03]} 44. Nf6+ {[%emt 0:00:01]} Kd8 {[%emt 0:00:03]} 45. Nxd5 {[%emt 0:00:01]} Rxd5 {[%emt 0:00:02]} 46. Qxb6+ {[%emt 0:00:01]} 1-0

[Event "RUS-chT Men Rapid 2019"]
[Site "Sochi"]
[Date "2019.10.18"]
[Round "5.25"]
[White "Smirnov, Timofey"]
[Black "Timofeev, Artyom"]
[Result "1/2-1/2"]
[ECO "C42"]
[WhiteElo "2354"]
[BlackElo "2595"]
[Annotator "ChessBase"]
[PlyCount "59"]
[EventDate "2019.10.18"]
[EventType "swiss"]
[EventCountry "RUS"]
[SourceTitle "playchess.com"]
[Source "ChessBase"]
[SourceQuality "1"]
[TimeControl "900+10"]

1. e4 {[%emt 0:00:00]} e5 {[%emt 0:00:00]} 2. Nf3 {[%emt 0:00:00]} Nf6 {[%emt 0:00:00]} 3. Nxe5 {[%emt 0:00:00]} d6 {[%emt 0:00:00]} 4. Nf3 {[%emt 0:00:02]} Nxe4 {[%emt 0:00:00]} 5. Nc3 {[%emt 0:00:03]} Nxc3 {[%emt 0:00:01]} 6. dxc3 {[%emt 0:00:03]} Be7 {[%emt 0:00:02]} 7. Be3 {[%emt 0:00:07]} Nc6 {[%emt 0:00:07]} 8. Qd2 {[%emt 0:00:11]} Be6 {[%emt 0:00:03]} 9. O-O-O {[%emt 0:00:40]} Qd7 {[%emt 0:00:07]} 10. Kb1 {[%emt 0:00:15]} a6 {[%emt 0:00:04]} 11. h4 {[%emt 0:00:31]} O-O-O {[%emt 0:01:06]} 12. Be2 {[%emt 0:00:19]} Bf6 {[%emt 0:00:26]} 13. Ng5 {[%emt 0:01:10]} Bxg5 {[%emt 0:00:19]} 14. hxg5 {[%emt 0:00:07]} Kb8 {[%emt 0:00:30]} 15. Rh4 {[%emt 0:00:04]} Bf5 {[%emt 0:00:24]} 16. Rdh1 {[%emt 0:00:29]} Rhe8 {[%emt 0:00:11]} 17. Bd3 {[%emt 0:00:41]} Bg6 {[%emt 0:00:06]} 18. Bxg6 {[%emt 0:00:40]} hxg6 {[%emt 0:00:11]} 19. Rh7 {[%emt 0:00:03]} Rg8 {[%emt 0:00:11]} 20. b3 {[%emt 0:00:40]} d5 {[%emt 0:00:37]} 21. Bd4 {[%emt 0:00:22]} Nxd4 {[%emt 0:00:13]} 22. Qxd4 {[%emt 0:00:02]} Qf5 {[%emt 0:00:04]} 23. Rxg7 {[%emt 0:01:33]} Rxg7 {[%emt 0:00:10]} 24. Qxg7 {[%emt 0:00:03]} Qxf2 {[%emt 0:00:11]} 25. Rh7 {[%emt 0:00:52]} d4 {[%emt 0:01:10]} 26. cxd4 {[%emt 0:00:05]} Qxd4 {[%emt 0:00:20]} 27. Qxf7 {[%emt 0:03:06]} Qd1+ {[%emt 0:00:14]} 28. Kb2 {[%emt 0:00:02]} Qd4+ {[%emt 0:00:02]} 29. Kb1 {[%emt 0:00:01]} Qd1+ {[%emt 0:00:06]} 30. Kb2 {[%emt 0:00:02]} 1/2-1/2